[Event "Early-Titled-Tuesday-Blitz-March-19-2024"]
[Site "Chess.com"]
[Date "2024.03.19"]
[Round "5"]
[White "rhungaski"]
[Black "AccioChess"]
[Result "1/2-1/2"]
[WhiteElo "2606"]
[BlackElo "2457"]
[TimeControl "180+1"]
[EndTime "8:58:36 PDT"]
[Termination "Game drawn by stalemate"]

1. e4 {[%clk 0:03:00.9]} 1... c5 {[%clk 0:02:58.9]} 2. Nf3 {[%clk 0:03:00.1]}
2... Nc6 {[%clk 0:02:58.9]} 3. d4 {[%clk 0:03:00.2]} 3... cxd4 {[%clk
0:02:58.7]} 4. Nxd4 {[%clk 0:03:00.9]} 4... Nf6 {[%clk 0:02:59.1]} 5. Nc3 {[%clk
0:03:00.5]} 5... e5 {[%clk 0:02:59.4]} 6. Ndb5 {[%clk 0:03:00.7]} 6... d6 {[%clk
0:02:59.7]} 7. Bg5 {[%clk 0:03:01]} 7... a6 {[%clk 0:03:00.1]} 8. Na3 {[%clk
0:03:01.5]} 8... b5 {[%clk 0:03:00.1]} 9. Nd5 {[%clk 0:03:02.2]} 9... Be7 {[%clk
0:03:00.6]} 10. Bxf6 {[%clk 0:03:02.3]} 10... Bxf6 {[%clk 0:03:01.5]} 11. c4
{[%clk 0:03:02.6]} 11... b4 {[%clk 0:02:56.3]} 12. Nc2 {[%clk 0:03:02.4]} 12...
O-O {[%clk 0:02:56.5]} 13. Be2 {[%clk 0:03:02.8]} 13... Bg5 {[%clk 0:02:53.9]}
14. O-O {[%clk 0:03:01.8]} 14... Qa5 {[%clk 0:02:53.2]} 15. Qd3 {[%clk 0:02:56]}
15... Qc5 {[%clk 0:02:50.2]} 16. Rad1 {[%clk 0:02:49.8]} 16... Ra7 {[%clk
0:02:47.6]} 17. Bf3 {[%clk 0:02:45.5]} 17... a5 {[%clk 0:02:46.5]} 18. g3 {[%clk
0:02:38]} 18... a4 {[%clk 0:02:40.5]} 19. Bg2 {[%clk 0:02:33.8]} 19... b3 {[%clk
0:02:18.4]} 20. axb3 {[%clk 0:02:31.7]} 20... axb3 {[%clk 0:02:19.3]} 21. Qxb3
{[%clk 0:02:31.2]} 21... Ba6 {[%clk 0:02:19.3]} 22. Qc3 {[%clk 0:01:43.7]} 22...
Qxc4 {[%clk 0:02:03.5]} 23. Rfe1 {[%clk 0:01:41.2]} 23... Rb8 {[%clk 0:01:56.1]}
24. Qxc4 {[%clk 0:01:15.4]} 24... Bxc4 {[%clk 0:01:55.5]} 25. Nde3 {[%clk
0:01:16.3]} 25... Be6 {[%clk 0:00:49.5]} 26. Rxd6 {[%clk 0:01:14.7]} 26... Nb4
{[%clk 0:00:42]} 27. Nxb4 {[%clk 0:01:07.5]} 27... Rxb4 {[%clk 0:00:42.9]} 28.
h4 {[%clk 0:00:35.7]} 28... Be7 {[%clk 0:00:42.2]} 29. Rd2 {[%clk 0:00:35]}
29... Rb8 {[%clk 0:00:29.2]} 30. Red1 {[%clk 0:00:30.4]} 30... g6 {[%clk
0:00:28.5]} 31. Kh2 {[%clk 0:00:29.3]} 31... Bc5 {[%clk 0:00:28.3]} 32. Rd8+
{[%clk 0:00:19.2]} 32... Rxd8 {[%clk 0:00:28.3]} 33. Rxd8+ {[%clk 0:00:19.8]}
33... Kg7 {[%clk 0:00:29]} 34. Nd1 {[%clk 0:00:20.5]} 34... Bd4 {[%clk
0:00:28.2]} 35. f4 {[%clk 0:00:19.8]} 35... Ra1 {[%clk 0:00:27.3]} 36. Nc3
{[%clk 0:00:16.8]} 36... Rc1 {[%clk 0:00:25.1]} 37. Ne2 {[%clk 0:00:13.6]} 37...
Rd1 {[%clk 0:00:17.1]} 38. Nxd4 {[%clk 0:00:13.5]} 38... exd4 {[%clk 0:00:18]}
39. Bf3 {[%clk 0:00:08.9]} 39... Rd2+ {[%clk 0:00:17.9]} 40. Kg1 {[%clk
0:00:09.5]} 40... d3 {[%clk 0:00:17.1]} 41. g4 {[%clk 0:00:08.8]} 41... Bb3
{[%clk 0:00:16.3]} 42. f5 {[%clk 0:00:08.8]} 42... gxf5 {[%clk 0:00:11.5]} 43.
exf5 {[%clk 0:00:08.8]} 43... Kf6 {[%clk 0:00:11.3]} 44. Rd4 {[%clk 0:00:07.6]}
44... Ke5 {[%clk 0:00:10.3]} 45. Re4+ {[%clk 0:00:07.7]} 45... Kd6 {[%clk
0:00:10.2]} 46. g5 {[%clk 0:00:07.2]} 46... Kc5 {[%clk 0:00:09.6]} 47. Re5+
{[%clk 0:00:06.9]} 47... Kb4 {[%clk 0:00:08.8]} 48. Re4+ {[%clk 0:00:06.4]}
48... Kc5 {[%clk 0:00:08.4]} 49. Re5+ {[%clk 0:00:06.5]} 49... Kd4 {[%clk
0:00:08.3]} 50. Re7 {[%clk 0:00:06.5]} 50... Bc4 {[%clk 0:00:07.5]} 51. h5
{[%clk 0:00:06.2]} 51... Rxb2 {[%clk 0:00:07.3]} 52. Rd7+ {[%clk 0:00:05.1]}
52... Ke3 {[%clk 0:00:06.7]} 53. Bg4 {[%clk 0:00:05.6]} 53... d2 {[%clk
0:00:06.4]} 54. g6 {[%clk 0:00:05.7]} 54... hxg6 {[%clk 0:00:06.2]} 55. fxg6
{[%clk 0:00:06.6]} 55... fxg6 {[%clk 0:00:06.7]} 56. h6 {[%clk 0:00:06.9]} 56...
Rb1+ {[%clk 0:00:06.5]} 57. Kg2 {[%clk 0:00:06.8]} 57... Be2 {[%clk 0:00:06.2]}
58. Re7+ {[%clk 0:00:06.2]} 58... Kf4 {[%clk 0:00:06.4]} 59. Bxe2 {[%clk
0:00:06.4]} 59... d1=Q {[%clk 0:00:05.8]} 60. Bxd1 {[%clk 0:00:06.2]} 60... Rxd1
{[%clk 0:00:06.7]} 61. h7 {[%clk 0:00:05.6]} 61... Rd8 {[%clk 0:00:06.7]} 62.
Rg7 {[%clk 0:00:04.5]} 62... Rh8 {[%clk 0:00:06.7]} 63. Kh3 {[%clk 0:00:05.2]}
63... Kg5 {[%clk 0:00:06.7]} 64. Ra7 {[%clk 0:00:04.6]} 64... Kh6 {[%clk
0:00:07.1]} 65. Kg4 {[%clk 0:00:05.1]} 65... Rxh7 {[%clk 0:00:07.5]} 66. Rxh7+
{[%clk 0:00:04.6]} 66... Kxh7 {[%clk 0:00:07.4]} 67. Kg5 {[%clk 0:00:05.5]}
67... Kg7 {[%clk 0:00:08.2]} 68. Kg4 {[%clk 0:00:06.1]} 68... Kf7 {[%clk
0:00:09.1]} 69. Kg5 {[%clk 0:00:06.3]} 69... Kg7 {[%clk 0:00:09.3]} 70. Kg4
{[%clk 0:00:07]} 70... Kf6 {[%clk 0:00:10.2]} 71. Kf4 {[%clk 0:00:07.3]} 71...
g5+ {[%clk 0:00:11.1]} 72. Kg4 {[%clk 0:00:08]} 72... Kg6 {[%clk 0:00:12]} 73.
Kg3 {[%clk 0:00:08.7]} 73... Kf5 {[%clk 0:00:12.9]} 74. Kf3 {[%clk 0:00:09.1]}
74... g4+ {[%clk 0:00:13.8]} 75. Kg3 {[%clk 0:00:09.8]} 75... Kg5 {[%clk
0:00:14.7]} 76. Kg2 {[%clk 0:00:10.5]} 76... Kf4 {[%clk 0:00:15.6]} 77. Kf2
{[%clk 0:00:11]} 77... g3+ {[%clk 0:00:16.5]} 78. Kg2 {[%clk 0:00:11.7]} 78...
Kg4 {[%clk 0:00:17.4]} 79. Kg1 {[%clk 0:00:12.4]} 79... Kf4 {[%clk 0:00:18.1]}
80. Kg2 {[%clk 0:00:12.7]} 80... Kg4 {[%clk 0:00:18.6]} 81. Kg1 {[%clk
0:00:13.1]} 81... Kf3 {[%clk 0:00:19.5]} 82. Kf1 {[%clk 0:00:13.4]} 82... g2+
{[%clk 0:00:19.8]} 83. Kg1 {[%clk 0:00:14.1]} 83... Kg3 {[%clk 0:00:20.7]}
1/2-1/2

[Event "Early-Titled-Tuesday-Blitz-March-19-2024"]
[Site "Chess.com"]
[Date "2024.03.19"]
[Round "5"]
[White "Jahonas"]
[Black "MalyDominator"]
[Result "0-1"]
[WhiteElo "2337"]
[BlackElo "2547"]
[TimeControl "180+1"]
[EndTime "8:58:38 PDT"]
[Termination "MalyDominator won by checkmate"]

1. d4 {[%clk 0:03:00.9]} 1... Nf6 {[%clk 0:02:54.9]} 2. c4 {[%clk 0:03:01.1]}
2... e6 {[%clk 0:02:54.8]} 3. Nf3 {[%clk 0:03:01.3]} 3... Bb4+ {[%clk
0:02:53.9]} 4. Nbd2 {[%clk 0:03:00.8]} 4... d5 {[%clk 0:02:53.3]} 5. g3 {[%clk
0:03:00.4]} 5... O-O {[%clk 0:02:53]} 6. a3 {[%clk 0:03:00.2]} 6... Be7 {[%clk
0:02:52.4]} 7. Bg2 {[%clk 0:02:59.1]} 7... b6 {[%clk 0:02:52.8]} 8. cxd5 {[%clk
0:02:58.4]} 8... exd5 {[%clk 0:02:52.2]} 9. O-O {[%clk 0:02:58.3]} 9... c6
{[%clk 0:02:52.8]} 10. b4 {[%clk 0:02:58]} 10... a5 {[%clk 0:02:52.1]} 11. bxa5
{[%clk 0:02:57]} 11... Rxa5 {[%clk 0:02:50.9]} 12. Bb2 {[%clk 0:02:56]} 12...
Bf5 {[%clk 0:02:50.1]} 13. Ne5 {[%clk 0:02:45.9]} 13... Nfd7 {[%clk 0:02:44.4]}
14. Ndf3 {[%clk 0:02:41.6]} 14... f6 {[%clk 0:02:39.7]} 15. Nxd7 {[%clk
0:02:40.3]} 15... Nxd7 {[%clk 0:02:35.1]} 16. Qc1 {[%clk 0:02:36.8]} 16... Qa8
{[%clk 0:02:34.7]} 17. Nd2 {[%clk 0:02:30.9]} 17... Rc8 {[%clk 0:02:31.6]} 18.
e4 {[%clk 0:02:30.1]} 18... Be6 {[%clk 0:02:26]} 19. Re1 {[%clk 0:02:20.2]}
19... Bf8 {[%clk 0:02:25.6]} 20. Qb1 {[%clk 0:01:52.9]} 20... Bxa3 {[%clk
0:02:15.2]} 21. exd5 {[%clk 0:01:42.3]} 21... Bxd5 {[%clk 0:02:13.2]} 22. Bxd5+
{[%clk 0:01:41.6]} 22... cxd5 {[%clk 0:02:11.6]} 23. Bxa3 {[%clk 0:01:38.9]}
23... Rxa3 {[%clk 0:02:11.5]} 24. Rxa3 {[%clk 0:01:37.9]} 24... Qxa3 {[%clk
0:02:11.7]} 25. Qf5 {[%clk 0:01:37.2]} 25... Qd6 {[%clk 0:01:57.1]} 26. Re6
{[%clk 0:01:36.3]} 26... Qf8 {[%clk 0:01:33.1]} 27. Qxd5 {[%clk 0:01:33.5]}
27... Qf7 {[%clk 0:01:33.5]} 28. Ne4 {[%clk 0:01:22]} 28... Nf8 {[%clk
0:01:02.7]} 29. Rd6 {[%clk 0:01:20.5]} 29... Qxd5 {[%clk 0:00:58.4]} 30. Rxd5
{[%clk 0:01:21.4]} 30... Rc1+ {[%clk 0:00:48.7]} 31. Kg2 {[%clk 0:01:20.7]}
31... Rb1 {[%clk 0:00:42.4]} 32. Rd8 {[%clk 0:01:16.8]} 32... Kf7 {[%clk
0:00:42.1]} 33. d5 {[%clk 0:01:16]} 33... b5 {[%clk 0:00:39.5]} 34. d6 {[%clk
0:01:12.9]} 34... b4 {[%clk 0:00:31.1]} 35. Rb8 {[%clk 0:01:12.4]} 35... b3
{[%clk 0:00:27.5]} 36. Nc5 {[%clk 0:01:09]} 36... Rd1 {[%clk 0:00:25.1]} 37.
Rb7+ {[%clk 0:01:05.7]} 37... Kg6 {[%clk 0:00:22.9]} 38. d7 {[%clk 0:01:04.4]}
38... b2 {[%clk 0:00:16]} 39. Rxb2 {[%clk 0:01:03]} 39... Nxd7 {[%clk
0:00:15.2]} 40. Ne6 {[%clk 0:01:01.4]} 40... Kf7 {[%clk 0:00:13.3]} 41. Nf4
{[%clk 0:00:59.9]} 41... Ne5 {[%clk 0:00:13.5]} 42. Rb7+ {[%clk 0:00:59.5]}
42... Kg8 {[%clk 0:00:12.5]} 43. h4 {[%clk 0:00:53.3]} 43... Rd7 {[%clk
0:00:11.9]} 44. Rb8+ {[%clk 0:00:53]} 44... Kf7 {[%clk 0:00:12.4]} 45. h5 {[%clk
0:00:53.4]} 45... g6 {[%clk 0:00:11.8]} 46. h6 {[%clk 0:00:52.8]} 46... g5
{[%clk 0:00:10.6]} 47. Rh8 {[%clk 0:00:36.2]} 47... gxf4 {[%clk 0:00:08.7]} 48.
Rxh7+ {[%clk 0:00:32.4]} 48... Ke6 {[%clk 0:00:09]} 49. Rxd7 {[%clk 0:00:31]}
49... Kxd7 {[%clk 0:00:09.1]} 50. gxf4 {[%clk 0:00:30.2]} 50... Nf7 {[%clk
0:00:07.9]} 51. h7 {[%clk 0:00:28.8]} 51... Ke6 {[%clk 0:00:08.3]} 52. Kf3
{[%clk 0:00:29]} 52... Kf5 {[%clk 0:00:08.5]} 53. Ke3 {[%clk 0:00:28.4]} 53...
Nh8 {[%clk 0:00:08.4]} 54. Kf3 {[%clk 0:00:27.6]} 54... Kg6 {[%clk 0:00:08.7]}
55. Kg4 {[%clk 0:00:27.8]} 55... Kxh7 {[%clk 0:00:09.2]} 56. Kf5 {[%clk
0:00:28.2]} 56... Kg7 {[%clk 0:00:09.7]} 57. f3 {[%clk 0:00:27.5]} 57... Ng6
{[%clk 0:00:09.2]} 58. Kg4 {[%clk 0:00:27.3]} 58... Kf7 {[%clk 0:00:09.1]} 59.
Kf5 {[%clk 0:00:27]} 59... Ne7+ {[%clk 0:00:09.1]} 60. Kg4 {[%clk 0:00:26.1]}
60... Ke6 {[%clk 0:00:09.7]} 61. f5+ {[%clk 0:00:26.4]} 61... Nxf5 {[%clk
0:00:09.8]} 62. Kf4 {[%clk 0:00:27.3]} 62... Ne7 {[%clk 0:00:10.1]} 63. Ke4
{[%clk 0:00:27.3]} 63... f5+ {[%clk 0:00:10.5]} 64. Kf4 {[%clk 0:00:27.7]} 64...
Kf6 {[%clk 0:00:11.2]} 65. Kg3 {[%clk 0:00:27.7]} 65... Ng6 {[%clk 0:00:11.9]}
66. f4 {[%clk 0:00:27.9]} 66... Ke6 {[%clk 0:00:12.2]} 67. Kf3 {[%clk
0:00:28.8]} 67... Kd5 {[%clk 0:00:12.6]} 68. Ke3 {[%clk 0:00:29.7]} 68... Nh4
{[%clk 0:00:12]} 69. Kf2 {[%clk 0:00:29.2]} 69... Ke4 {[%clk 0:00:12]} 70. Kg3
{[%clk 0:00:30.1]} 70... Ng6 {[%clk 0:00:12.4]} 71. Kf2 {[%clk 0:00:30.2]} 71...
Nxf4 {[%clk 0:00:13.2]} 72. Kg3 {[%clk 0:00:30.2]} 72... Ne6 {[%clk 0:00:13.7]}
73. Kf2 {[%clk 0:00:31.1]} 73... f4 {[%clk 0:00:14.3]} 74. Kg2 {[%clk 0:00:31]}
74... f3+ {[%clk 0:00:14.8]} 75. Kf2 {[%clk 0:00:31.9]} 75... Ng5 {[%clk
0:00:15.1]} 76. Kf1 {[%clk 0:00:32.7]} 76... Ke3 {[%clk 0:00:15.2]} 77. Ke1
{[%clk 0:00:33.1]} 77... f2+ {[%clk 0:00:15.6]} 78. Kf1 {[%clk 0:00:34]} 78...
Ne4 {[%clk 0:00:15.6]} 79. Kg2 {[%clk 0:00:34.3]} 79... Nd2 {[%clk 0:00:16]} 80.
Kh2 {[%clk 0:00:33.7]} 80... f1=Q {[%clk 0:00:16.1]} 81. Kg3 {[%clk 0:00:34.2]}
81... Qf4+ {[%clk 0:00:16.4]} 82. Kh3 {[%clk 0:00:34.3]} 82... Qg5 {[%clk
0:00:15.5]} 83. Kh2 {[%clk 0:00:34.4]} 83... Nf3+ {[%clk 0:00:14.5]} 84. Kh3
{[%clk 0:00:35.3]} 84... Ne1 {[%clk 0:00:09.8]} 85. Kh2 {[%clk 0:00:34.7]} 85...
Qg2# {[%clk 0:00:10.4]} 0-1

[Event "Early-Titled-Tuesday-Blitz-March-19-2024"]
[Site "Chess.com"]
[Date "2024.03.19"]
[Round "5"]
[White "mbojan"]
[Black "Elnaz_Kaliakhmet"]
[Result "1-0"]
[WhiteElo "2805"]
[BlackElo "2525"]
[TimeControl "180+1"]
[EndTime "8:58:39 PDT"]
[Termination "mbojan won on time"]

1. e4 {[%clk 0:03:00.9]} 1... c5 {[%clk 0:02:59]} 2. Nf3 {[%clk 0:03:00.6]} 2...
Nc6 {[%clk 0:02:59.1]} 3. c3 {[%clk 0:02:57.8]} 3... d5 {[%clk 0:02:57.8]} 4.
exd5 {[%clk 0:02:51.6]} 4... Qxd5 {[%clk 0:02:58.7]} 5. Na3 {[%clk 0:02:48]}
5... Nf6 {[%clk 0:02:55]} 6. d4 {[%clk 0:02:46.1]} 6... e6 {[%clk 0:02:53.4]} 7.
Be3 {[%clk 0:02:38.6]} 7... cxd4 {[%clk 0:02:51.6]} 8. Nb5 {[%clk 0:02:39]} 8...
Qd7 {[%clk 0:02:43]} 9. Nbxd4 {[%clk 0:02:34.3]} 9... a6 {[%clk 0:02:35.5]} 10.
Nxc6 {[%clk 0:01:52.7]} 10... Qxc6 {[%clk 0:02:32.8]} 11. Ne5 {[%clk 0:01:52.8]}
11... Qc7 {[%clk 0:02:30.1]} 12. Qa4+ {[%clk 0:01:15.6]} 12... Bd7 {[%clk
0:02:25.6]} 13. Nxd7 {[%clk 0:01:12.9]} 13... Qxd7 {[%clk 0:02:21.1]} 14. Qxd7+
{[%clk 0:01:11.7]} 14... Nxd7 {[%clk 0:02:20.1]} 15. Bd4 {[%clk 0:00:39.7]}
15... O-O-O {[%clk 0:02:11]} 16. O-O-O {[%clk 0:00:29.5]} 16... e5 {[%clk
0:01:57.6]} 17. Be3 {[%clk 0:00:29.6]} 17... f6 {[%clk 0:01:58]} 18. b4 {[%clk
0:00:23.4]} 18... Be7 {[%clk 0:01:50.9]} 19. Kb2 {[%clk 0:00:23.6]} 19... Nb8
{[%clk 0:01:43.5]} 20. Bc4 {[%clk 0:00:23.2]} 20... Nc6 {[%clk 0:01:42.8]} 21.
Bb6 {[%clk 0:00:22.3]} 21... Rxd1 {[%clk 0:01:31.9]} 22. Rxd1 {[%clk 0:00:23.2]}
22... Bd8 {[%clk 0:01:31.6]} 23. Be6+ {[%clk 0:00:22.9]} 23... Kb8 {[%clk
0:01:31.4]} 24. Bc5 {[%clk 0:00:21]} 24... b6 {[%clk 0:01:27.1]} 25. Bd6+ {[%clk
0:00:20.1]} 25... Kb7 {[%clk 0:01:27.4]} 26. a4 {[%clk 0:00:17.9]} 26... Re8
{[%clk 0:00:55.3]} 27. Bd7 {[%clk 0:00:16.9]} 27... Rg8 {[%clk 0:00:56]} 28. Kb3
{[%clk 0:00:17.5]} 28... Nb8 {[%clk 0:00:54.9]} 29. Be6 {[%clk 0:00:17.3]} 29...
Re8 {[%clk 0:00:53.2]} 30. Bd5+ {[%clk 0:00:17.4]} 30... Kc8 {[%clk 0:00:51.3]}
31. Bf7 {[%clk 0:00:11.7]} 31... Rh8 {[%clk 0:00:50.1]} 32. Be6+ {[%clk
0:00:11.4]} 32... Kb7 {[%clk 0:00:50.3]} 33. Bxb8 {[%clk 0:00:10.1]} 33... Kxb8
{[%clk 0:00:50.1]} 34. Rd7 {[%clk 0:00:10.9]} 34... g6 {[%clk 0:00:44.6]} 35. c4
{[%clk 0:00:07.2]} 35... Bc7 {[%clk 0:00:40.5]} 36. c5 {[%clk 0:00:06.2]} 36...
bxc5 {[%clk 0:00:40]} 37. bxc5 {[%clk 0:00:07.1]} 37... Rd8 {[%clk 0:00:38.6]}
38. Rxd8+ {[%clk 0:00:06.3]} 38... Bxd8 {[%clk 0:00:38.4]} 39. Kc4 {[%clk
0:00:07.2]} 39... Kc7 {[%clk 0:00:38.1]} 40. Kd5 {[%clk 0:00:06.2]} 40... Be7
{[%clk 0:00:37.5]} 41. g4 {[%clk 0:00:06.5]} 41... g5 {[%clk 0:00:35.7]} 42. f3
{[%clk 0:00:06.6]} 42... Bf8 {[%clk 0:00:33.2]} 43. Bf5 {[%clk 0:00:06.6]} 43...
h6 {[%clk 0:00:32.7]} 44. Bd3 {[%clk 0:00:06.8]} 44... a5 {[%clk 0:00:30]} 45.
Bb5 {[%clk 0:00:07.1]} 45... Be7 {[%clk 0:00:24]} 46. c6 {[%clk 0:00:06.6]}
46... Bd6 {[%clk 0:00:20.5]} 47. Ke6 {[%clk 0:00:07]} 47... e4 {[%clk
0:00:20.2]} 48. fxe4 {[%clk 0:00:06.8]} 48... Be5 {[%clk 0:00:20.4]} 49. h3
{[%clk 0:00:06.1]} 49... Bd4 {[%clk 0:00:20.2]} 50. Kf7 {[%clk 0:00:06.6]} 50...
Kd6 {[%clk 0:00:16.5]} 51. Kg6 {[%clk 0:00:07.1]} 51... Bc3 {[%clk 0:00:07.8]}
52. Kxh6 {[%clk 0:00:06.4]} 52... Bd4 {[%clk 0:00:06.2]} 53. Kg6 {[%clk
0:00:06.6]} 53... Bc3 {[%clk 0:00:06.1]} 54. Kf5 {[%clk 0:00:06.7]} 54... Bd4
{[%clk 0:00:06]} 55. Kg6 {[%clk 0:00:06.9]} 55... Bc3 {[%clk 0:00:06.3]} 56. Kh5
{[%clk 0:00:07.2]} 56... Bd4 {[%clk 0:00:06.8]} 57. h4 {[%clk 0:00:07.3]} 57...
gxh4 {[%clk 0:00:07.4]} 58. Kxh4 {[%clk 0:00:08.2]} 58... Bf2+ {[%clk
0:00:06.9]} 59. Kh5 {[%clk 0:00:08.6]} 59... Be3 {[%clk 0:00:06.9]} 60. Kg6
{[%clk 0:00:09]} 60... Bd4 {[%clk 0:00:05.9]} 61. Kf5 {[%clk 0:00:09.7]} 61...
Bc3 {[%clk 0:00:05.3]} 62. e5+ {[%clk 0:00:04]} 62... fxe5 {[%clk 0:00:02.4]}
63. g5 {[%clk 0:00:04.3]} 63... Kc7 {[%clk 0:00:01.7]} 64. Ke4 {[%clk 0:00:04]}
1-0

[Event "Early-Titled-Tuesday-Blitz-March-19-2024"]
[Site "Chess.com"]
[Date "2024.03.19"]
[Round "5"]
[White "Robert_Chessmood"]
[Black "Predator0608"]
[Result "1-0"]
[WhiteElo "2960"]
[BlackElo "2566"]
[TimeControl "180+1"]
[EndTime "8:58:43 PDT"]
[Termination "Robert_Chessmood won by checkmate"]

1. e4 {[%clk 0:03:00.9]} 1... c5 {[%clk 0:03:00.5]} 2. Nf3 {[%clk 0:02:59.7]}
2... d6 {[%clk 0:03:00.8]} 3. d4 {[%clk 0:02:55.9]} 3... cxd4 {[%clk 0:03:01.7]}
4. Nxd4 {[%clk 0:02:56.8]} 4... Nf6 {[%clk 0:03:02.3]} 5. Nc3 {[%clk 0:02:57.4]}
5... a6 {[%clk 0:03:02.4]} 6. Be2 {[%clk 0:02:58]} 6... e5 {[%clk 0:03:02.4]} 7.
Nf3 {[%clk 0:02:58.7]} 7... Be7 {[%clk 0:03:01.8]} 8. Bg5 {[%clk 0:02:56.8]}
8... Nbd7 {[%clk 0:03:00.3]} 9. a4 {[%clk 0:02:56.2]} 9... b6 {[%clk 0:03:00.3]}
10. Nd2 {[%clk 0:02:55]} 10... Bb7 {[%clk 0:02:58.7]} 11. Nc4 {[%clk 0:02:43]}
11... Qc7 {[%clk 0:02:42.4]} 12. f3 {[%clk 0:02:27.8]} 12... O-O {[%clk
0:02:15.7]} 13. O-O {[%clk 0:02:15.2]} 13... Rfd8 {[%clk 0:01:12.4]} 14. Bh4
{[%clk 0:01:50.1]} 14... Rac8 {[%clk 0:00:34.7]} 15. Ne3 {[%clk 0:01:46.2]}
15... Nf8 {[%clk 0:00:30.2]} 16. Bf2 {[%clk 0:00:56.5]} 16... Ne6 {[%clk
0:00:27.8]} 17. Ncd5 {[%clk 0:00:52.1]} 17... Nxd5 {[%clk 0:00:27.6]} 18. Nxd5
{[%clk 0:00:50.9]} 18... Bxd5 {[%clk 0:00:27.2]} 19. exd5 {[%clk 0:00:50.5]}
19... Nd4 {[%clk 0:00:21.3]} 20. Bxd4 {[%clk 0:00:39]} 20... exd4 {[%clk
0:00:22.2]} 21. Bxa6 {[%clk 0:00:39.5]} 21... Ra8 {[%clk 0:00:22]} 22. Bb5
{[%clk 0:00:37.8]} 22... Bf6 {[%clk 0:00:20.5]} 23. Bc6 {[%clk 0:00:34.3]} 23...
Ra7 {[%clk 0:00:19.6]} 24. Qd3 {[%clk 0:00:34.3]} 24... h6 {[%clk 0:00:19.8]}
25. Rae1 {[%clk 0:00:33.7]} 25... Qc8 {[%clk 0:00:18.4]} 26. Re2 {[%clk
0:00:31.8]} 26... g6 {[%clk 0:00:16]} 27. Rfe1 {[%clk 0:00:31.8]} 27... Kg7
{[%clk 0:00:16.5]} 28. b3 {[%clk 0:00:31.1]} 28... Qc7 {[%clk 0:00:10.6]} 29. g3
{[%clk 0:00:31.3]} 29... Qc8 {[%clk 0:00:10.6]} 30. Kg2 {[%clk 0:00:31.6]} 30...
Qf5 {[%clk 0:00:10.9]} 31. Qxf5 {[%clk 0:00:28.7]} 31... gxf5 {[%clk 0:00:11.8]}
32. f4 {[%clk 0:00:29.3]} 32... Rc7 {[%clk 0:00:12]} 33. Kf3 {[%clk 0:00:26]}
33... Rcc8 {[%clk 0:00:11.7]} 34. Re8 {[%clk 0:00:18.5]} 34... Kg6 {[%clk
0:00:09.8]} 35. Rxd8 {[%clk 0:00:17.9]} 35... Rxd8 {[%clk 0:00:10.7]} 36. Re8
{[%clk 0:00:18.2]} 36... Kg7 {[%clk 0:00:09.9]} 37. b4 {[%clk 0:00:14]} 37...
Rxe8 {[%clk 0:00:09.2]} 38. Bxe8 {[%clk 0:00:14.9]} 38... Bd8 {[%clk 0:00:10.1]}
39. Bb5 {[%clk 0:00:13.1]} 39... Kf6 {[%clk 0:00:10]} 40. Bd3 {[%clk 0:00:13.6]}
40... Kg6 {[%clk 0:00:10.1]} 41. g4 {[%clk 0:00:13.1]} 41... Kf6 {[%clk
0:00:10.1]} 42. Bxf5 {[%clk 0:00:13.6]} 42... Bc7 {[%clk 0:00:09.6]} 43. Bd3
{[%clk 0:00:12.2]} 43... Bd8 {[%clk 0:00:08.3]} 44. h4 {[%clk 0:00:12.1]} 44...
Kg7 {[%clk 0:00:08.5]} 45. g5 {[%clk 0:00:12]} 45... hxg5 {[%clk 0:00:09]} 46.
fxg5 {[%clk 0:00:11.2]} 46... f6 {[%clk 0:00:09.9]} 47. Kg4 {[%clk 0:00:11.3]}
47... fxg5 {[%clk 0:00:10]} 48. hxg5 {[%clk 0:00:12.2]} 48... Bc7 {[%clk
0:00:09.7]} 49. Kf5 {[%clk 0:00:12.6]} 49... Bd8 {[%clk 0:00:10.3]} 50. Be2
{[%clk 0:00:13.1]} 50... Be7 {[%clk 0:00:09.3]} 51. Bh5 {[%clk 0:00:13]} 51...
Bd8 {[%clk 0:00:09.2]} 52. Be8 {[%clk 0:00:13.2]} 52... Kf8 {[%clk 0:00:09.3]}
53. Bh5 {[%clk 0:00:11.9]} 53... Kg7 {[%clk 0:00:10.2]} 54. Ke6 {[%clk 0:00:12]}
54... Bxg5 {[%clk 0:00:10.2]} 55. a5 {[%clk 0:00:11.7]} 55... bxa5 {[%clk
0:00:08.2]} 56. bxa5 {[%clk 0:00:12.6]} 56... Bd8 {[%clk 0:00:08.7]} 57. a6
{[%clk 0:00:12.4]} 57... Bb6 {[%clk 0:00:08.9]} 58. Kxd6 {[%clk 0:00:12.9]}
58... Kf6 {[%clk 0:00:09.3]} 59. Kc6 {[%clk 0:00:12.6]} 59... Ba7 {[%clk
0:00:09.7]} 60. Kb7 {[%clk 0:00:11.4]} 60... Bc5 {[%clk 0:00:09.9]} 61. a7
{[%clk 0:00:11.9]} 61... Bxa7 {[%clk 0:00:10.5]} 62. Kxa7 {[%clk 0:00:12.8]}
62... Ke5 {[%clk 0:00:10.9]} 63. Be2 {[%clk 0:00:12.9]} 63... Kxd5 {[%clk
0:00:09.9]} 64. Bd3 {[%clk 0:00:13.8]} 64... Kc5 {[%clk 0:00:10.2]} 65. Kb7
{[%clk 0:00:14.1]} 65... Kb4 {[%clk 0:00:11.1]} 66. Kc7 {[%clk 0:00:15]} 66...
Kc3 {[%clk 0:00:12]} 67. Kd6 {[%clk 0:00:15.3]} 67... Kb2 {[%clk 0:00:11.5]} 68.
Ke5 {[%clk 0:00:16.2]} 68... Ka1 {[%clk 0:00:12.4]} 69. Kxd4 {[%clk 0:00:16.6]}
69... Ka2 {[%clk 0:00:13.3]} 70. Ke5 {[%clk 0:00:17.5]} 70... Ka1 {[%clk
0:00:14.2]} 71. Kd5 {[%clk 0:00:18.4]} 71... Ka2 {[%clk 0:00:15.1]} 72. c4
{[%clk 0:00:18.8]} 72... Ka1 {[%clk 0:00:16]} 73. c5 {[%clk 0:00:19.7]} 73...
Ka2 {[%clk 0:00:16.9]} 74. c6 {[%clk 0:00:20.6]} 74... Ka1 {[%clk 0:00:17.8]}
75. c7 {[%clk 0:00:21.5]} 75... Ka2 {[%clk 0:00:18.7]} 76. Kd6 {[%clk
0:00:22.4]} 76... Ka1 {[%clk 0:00:19.6]} 77. Kd7 {[%clk 0:00:23.3]} 77... Kb2
{[%clk 0:00:20]} 78. c8=Q {[%clk 0:00:24.2]} 78... Ka1 {[%clk 0:00:20.9]} 79.
Qb7 {[%clk 0:00:22.2]} 79... Ka2 {[%clk 0:00:20.8]} 80. Bc2 {[%clk 0:00:23.1]}
80... Ka3 {[%clk 0:00:20.1]} 81. Qb3# {[%clk 0:00:22.9]} 1-0